[Event "Titled Tuesday Blitz August 15 Late 2023"]
[White "Mendez Fortes, Eduardo Jesus"]
[Black "ExchangeAB"]
[WhiteFideId "3502376"]
[WhiteElo "2610"]
[BlackElo "2444"]
[Result "1-0"]
[Round "5"]
[TimeControl "180+1"]
[Date "2023.08.15"]
[WhiteClock "0:00:09"]
[BlackClock "0:00:04"]
[Board "75"]

1. e4 {[%clk 0:03:00]}  c6 {[%clk 0:02:59]} 2. d4 {[%clk 0:03:00]}  d5 {[%clk 0:03:00]} 3. e5 {[%clk 0:03:00]}  Bf5 {[%clk 0:03:00]} 4. Nf3 {[%clk 0:03:00]}  e6 {[%clk 0:03:01]} 5. Be2 {[%clk 0:03:00]}  Ne7 {[%clk 0:03:01]} 6. Nbd2 {[%clk 0:02:58]}  h6 {[%clk 0:03:02]} 7. O-O {[%clk 0:02:56]}  Nd7 {[%clk 0:03:02]} 8. Nb3 {[%clk 0:02:57]}  g5 {[%clk 0:03:01]} 9. a4 {[%clk 0:02:56]}  Bg7 {[%clk 0:03:01]} 10. Bd2 {[%clk 0:02:55]}  O-O {[%clk 0:03:00]} 11. a5 {[%clk 0:02:55]}  b6 {[%clk 0:02:59]} 12. Bb4 {[%clk 0:02:49]}  c5 {[%clk 0:02:41]} 13. dxc5 {[%clk 0:02:46]}  bxc5 {[%clk 0:02:41]} 14. Nxc5 {[%clk 0:02:43]}  Nxe5 {[%clk 0:02:38]} 15. Nd4 {[%clk 0:02:30]}  Re8 {[%clk 0:02:28]} 16. c3 {[%clk 0:02:10]}  Rb8 {[%clk 0:02:10]} 17. a6 {[%clk 0:02:08]}  N5c6 {[%clk 0:02:03]} 18. Nb7 {[%clk 0:02:03]}  Qd7 {[%clk 0:01:59]} 19. Bb5 {[%clk 0:01:49]}  Bxd4 {[%clk 0:01:51]} 20. cxd4 {[%clk 0:01:47]}  Rxb7 {[%clk 0:01:33]} 21. axb7 {[%clk 0:01:44]}  Qxb7 {[%clk 0:01:34]} 22. Qa4 {[%clk 0:01:25]}  Rb8 {[%clk 0:01:26]} 23. Bxc6 {[%clk 0:01:23]}  Nxc6 {[%clk 0:01:27]} 24. Bc5 {[%clk 0:01:22]}  Bd3 {[%clk 0:01:12]} 25. Rfc1 {[%clk 0:01:20]}  a6 {[%clk 0:01:06]} 26. Bd6 {[%clk 0:01:15]}  Bb5 {[%clk 0:01:06]} 27. Qa3 {[%clk 0:01:08]}  Re8 {[%clk 0:01:02]} 28. Qe3 {[%clk 0:01:03]}  f6 {[%clk 0:00:50]} 29. h4 {[%clk 0:01:00]}  Kg7 {[%clk 0:00:50]} 30. f4 {[%clk 0:00:56]}  g4 {[%clk 0:00:43]} 31. Re1 {[%clk 0:00:48]}  Qd7 {[%clk 0:00:42]} 32. Bc5 {[%clk 0:00:48]}  f5 {[%clk 0:00:38]} 33. Rac1 {[%clk 0:00:46]}  Kf7 {[%clk 0:00:34]} 34. Ba3 {[%clk 0:00:43]}  h5 {[%clk 0:00:31]} 35. Rc5 {[%clk 0:00:43]}  Rb8 {[%clk 0:00:26]} 36. Rec1 {[%clk 0:00:42]}  Bc4 {[%clk 0:00:18]} 37. Rc3 {[%clk 0:00:26]}  Rb5 {[%clk 0:00:18]} 38. b3 {[%clk 0:00:23]}  Rxc5 {[%clk 0:00:17]} 39. Bxc5 {[%clk 0:00:19]}  Bb5 {[%clk 0:00:18]} 40. Qc1 {[%clk 0:00:18]}  Qd8 {[%clk 0:00:17]} 41. g3 {[%clk 0:00:18]}  Qa5 {[%clk 0:00:16]} 42. Qc2 {[%clk 0:00:14]}  Qa1+ {[%clk 0:00:16]} 43. Kh2 {[%clk 0:00:12]}  Qf1 {[%clk 0:00:14]} 44. Bd6 {[%clk 0:00:12]}  Qe1 {[%clk 0:00:09]} 45. Rxc6 {[%clk 0:00:08]}  Bxc6 {[%clk 0:00:10]} 46. Bb4 {[%clk 0:00:07]}  Qxb4 {[%clk 0:00:09]} 47. Qxc6 {[%clk 0:00:08]}  Qxb3 {[%clk 0:00:05]} 48. Qd7+ {[%clk 0:00:06]}  Kf6 {[%clk 0:00:06]} 49. Qd8+ {[%clk 0:00:06]}  Kf7 {[%clk 0:00:06]} 50. Qd7+ {[%clk 0:00:06]}  Kf8 {[%clk 0:00:06]} 51. Qxe6 {[%clk 0:00:06]}  Qc2+ {[%clk 0:00:05]} 52. Kg1 {[%clk 0:00:06]}  Qd1+ {[%clk 0:00:05]} 53. Kf2 {[%clk 0:00:06]}  Qd2+ {[%clk 0:00:06]} 54. Kf1 {[%clk 0:00:06]}  Qd3+ {[%clk 0:00:06]} 55. Kf2 {[%clk 0:00:04]}  Qxd4+ {[%clk 0:00:06]} 56. Kf1 {[%clk 0:00:04]}  Qd3+ {[%clk 0:00:07]} 57. Kf2 {[%clk 0:00:03]}  Qc2+ {[%clk 0:00:07]} 58. Kf1 {[%clk 0:00:03]}  Qb1+ {[%clk 0:00:07]} 59. Kf2 {[%clk 0:00:04]}  Qe4 {[%clk 0:00:07]} 60. Qf6+ {[%clk 0:00:03]}  Ke8 {[%clk 0:00:08]} 61. Qxa6 {[%clk 0:00:04]}  Kd7 {[%clk 0:00:08]} 62. Qa7+ {[%clk 0:00:04]}  Kd6 {[%clk 0:00:09]} 63. Qb6+ {[%clk 0:00:04]}  Kd7 {[%clk 0:00:09]} 64. Qb7+ {[%clk 0:00:05]}  Ke8 {[%clk 0:00:09]} 65. Qc8+ {[%clk 0:00:05]}  Kf7 {[%clk 0:00:10]} 66. Qd7+ {[%clk 0:00:05]}  Kf6 {[%clk 0:00:10]} 67. Qd8+ {[%clk 0:00:05]}  Ke6 {[%clk 0:00:10]} 68. Qb6+ {[%clk 0:00:04]}  Kd7 {[%clk 0:00:10]} 69. Qb7+ {[%clk 0:00:04]}  Ke8 {[%clk 0:00:11]} 70. Qc8+ {[%clk 0:00:05]}  Kf7 {[%clk 0:00:11]} 71. Qd7+ {[%clk 0:00:05]}  Kf6 {[%clk 0:00:12]} 72. Qd8+ {[%clk 0:00:05]}  Qe7 {[%clk 0:00:10]} 73. Qxd5 {[%clk 0:00:06]}  Qa7+ {[%clk 0:00:10]} 74. Kg2 {[%clk 0:00:06]}  Qe7 {[%clk 0:00:08]} 75. Qc6+ {[%clk 0:00:06]}  Qe6 {[%clk 0:00:09]} 76. Qc3+ {[%clk 0:00:06]}  Kf7 {[%clk 0:00:09]} 77. Kf2 {[%clk 0:00:07]}  Qe4 {[%clk 0:00:08]} 78. Qc7+ {[%clk 0:00:06]}  Qe7 {[%clk 0:00:08]} 79. Qc4+ {[%clk 0:00:06]}  Qe6 {[%clk 0:00:08]} 80. Qd4 {[%clk 0:00:06]}  Qa2+ {[%clk 0:00:06]} 81. Ke3 {[%clk 0:00:06]}  Qb3+ {[%clk 0:00:06]} 82. Qd3 {[%clk 0:00:07]}  Qb6+ {[%clk 0:00:05]} 83. Kd2 {[%clk 0:00:07]}  Qf2+ {[%clk 0:00:04]} 84. Kc3 {[%clk 0:00:07]}  Kf6 {[%clk 0:00:03]} 85. Qd4+ {[%clk 0:00:07]}  Qxd4+ {[%clk 0:00:02]} 86. Kxd4 {[%clk 0:00:08]}  Ke6 {[%clk 0:00:03]} 87. Kc5 {[%clk 0:00:08]}  Ke7 {[%clk 0:00:03]} 88. Kd5 {[%clk 0:00:09]}  Kf6 {[%clk 0:00:03]} 89. Kd6 {[%clk 0:00:09]}  Kf7 {[%clk 0:00:04]} 90. Ke5 {[%clk 0:00:09]}  Kg6 {[%clk 0:00:04]} 91. Ke6 {[%clk 0:00:09]} 1-0


[Site "https://www.chess.com"]

[Event "Titled Tuesday Blitz August 15 Late 2023"]
[White "Sivakumar, Shaaketh"]
[Black "Kubatko, Ivan"]
[WhiteFideId "30940176"]
[BlackFideId "24111473"]
[WhiteElo "2602"]
[BlackElo "2443"]
[Result "0-1"]
[Round "5"]
[TimeControl "180+1"]
[Date "2023.08.15"]
[WhiteClock "0:00:12"]
[BlackClock "0:00:43"]
[Board "76"]

1. e4 {[%clk 0:02:55]}  d5 {[%clk 0:02:55]} 2. exd5 {[%clk 0:02:53]}  Qxd5 {[%clk 0:02:56]} 3. Nc3 {[%clk 0:02:50]}  Qa5 {[%clk 0:02:56]} 4. d4 {[%clk 0:02:50]}  Nf6 {[%clk 0:02:56]} 5. Nf3 {[%clk 0:02:46]}  Bg4 {[%clk 0:02:55]} 6. Be2 {[%clk 0:02:45]}  Nc6 {[%clk 0:02:54]} 7. Be3 {[%clk 0:02:31]}  O-O-O {[%clk 0:02:53]} 8. Qd2 {[%clk 0:02:23]}  e5 {[%clk 0:02:36]} 9. d5 {[%clk 0:01:52]}  Bb4 {[%clk 0:02:33]} 10. dxc6 {[%clk 0:01:35]}  Rxd2 {[%clk 0:02:26]} 11. cxb7+ {[%clk 0:01:36]}  Kxb7 {[%clk 0:02:21]} 12. Bxd2 {[%clk 0:01:32]}  e4 {[%clk 0:02:21]} 13. Nd4 {[%clk 0:01:27]}  Qe5 {[%clk 0:02:03]} 14. Bxg4 {[%clk 0:01:15]}  Nxg4 {[%clk 0:02:01]} 15. Nde2 {[%clk 0:01:11]}  e3 {[%clk 0:01:57]} 16. fxe3 {[%clk 0:01:02]}  Nxe3 {[%clk 0:01:53]} 17. Bxe3 {[%clk 0:00:52]}  Qxe3 {[%clk 0:01:54]} 18. Rf1 {[%clk 0:00:46]}  Re8 {[%clk 0:01:35]} 19. Rf2 {[%clk 0:00:45]}  Bc5 {[%clk 0:01:34]} 20. Rf3 {[%clk 0:00:41]}  Qg1+ {[%clk 0:01:32]} 21. Rf1 {[%clk 0:00:41]}  Qxg2 {[%clk 0:01:25]} 22. Rxf7 {[%clk 0:00:41]}  Bb4 {[%clk 0:01:13]} 23. Rf2 {[%clk 0:00:20]}  Qg1+ {[%clk 0:01:12]} 24. Rf1 {[%clk 0:00:20]}  Qxh2 {[%clk 0:01:05]} 25. Rf2 {[%clk 0:00:20]}  Qh1+ {[%clk 0:01:01]} 26. Rf1 {[%clk 0:00:21]}  Qh4+ {[%clk 0:01:01]} 27. Rf2 {[%clk 0:00:21]}  Bc5 {[%clk 0:01:00]} 28. Nd1 {[%clk 0:00:21]}  Rd8 {[%clk 0:00:53]} 29. Nf4 {[%clk 0:00:10]}  Rxd1+ {[%clk 0:00:49]} 30. Kxd1 {[%clk 0:00:11]}  Qxf2 {[%clk 0:00:49]} 31. Nd3 {[%clk 0:00:12]}  Qf1+ {[%clk 0:00:48]} 32. Ne1 {[%clk 0:00:12]}  Bf2 {[%clk 0:00:45]} 33. c3 {[%clk 0:00:13]}  Qxe1+ {[%clk 0:00:45]} 34. Kc2 {[%clk 0:00:14]}  Qxa1 {[%clk 0:00:44]} 35. Kb3 {[%clk 0:00:12]}  Kb6 {[%clk 0:00:43]} 0-1


[Site "https://www.chess.com"]

[Event "Titled Tuesday Blitz August 15 Late 2023"]
[White "Manukian, Artak"]
[Black "Caspi, Israel"]
[WhiteFideId "13301373"]
[BlackFideId "2807394"]
[WhiteElo "2439"]
[BlackElo "2585"]
[Result "0-1"]
[Round "5"]
[TimeControl "180+1"]
[Date "2023.08.15"]
[WhiteClock "0:00:00"]
[BlackClock "0:01:10"]
[Board "77"]

1. e4 {[%clk 0:01:11]}  d5 {[%clk 0:02:58]} 2. exd5 {[%clk 0:01:10]}  Qxd5 {[%clk 0:02:59]} 3. Nc3 {[%clk 0:01:07]}  Qd6 {[%clk 0:02:59]} 4. d4 {[%clk 0:01:06]}  Nf6 {[%clk 0:03:00]} 5. g3 {[%clk 0:01:07]}  Bg4 {[%clk 0:02:59]} 6. f3 {[%clk 0:01:06]}  Bf5 {[%clk 0:02:59]} 7. Bc4 {[%clk 0:00:48]}  Nc6 {[%clk 0:02:58]} 8. Nge2 {[%clk 0:00:46]}  e5 {[%clk 0:02:45]} 9. d5 {[%clk 0:00:42]}  Nb4 {[%clk 0:02:45]} 10. Bb3 {[%clk 0:00:32]}  O-O-O {[%clk 0:02:45]} 11. Bg5 {[%clk 0:00:26]}  Be7 {[%clk 0:02:37]} 12. Bxf6 {[%clk 0:00:24]}  Bxf6 {[%clk 0:02:37]} 13. a3 {[%clk 0:00:24]}  Na6 {[%clk 0:02:37]} 14. Ne4 {[%clk 0:00:16]}  Qb6 {[%clk 0:02:25]} 15. N2c3 {[%clk 0:00:15]}  Nc5 {[%clk 0:02:18]} 16. Nxc5 {[%clk 0:00:14]}  Qxc5 {[%clk 0:02:19]} 17. Qe2 {[%clk 0:00:10]}  Bg5 {[%clk 0:02:15]} 18. Ne4 {[%clk 0:00:11]}  Bxe4 {[%clk 0:02:13]} 19. fxe4 {[%clk 0:00:11]}  Kb8 {[%clk 0:02:08]} 20. h4 {[%clk 0:00:09]}  Be3 {[%clk 0:02:07]} 21. Rf1 {[%clk 0:00:09]}  f6 {[%clk 0:02:06]} 22. Rf3 {[%clk 0:00:09]}  Bh6 {[%clk 0:02:06]} 23. Rc3 {[%clk 0:00:09]}  Qg1+ {[%clk 0:02:03]} 24. Qf1 {[%clk 0:00:09]}  Qb6 {[%clk 0:01:59]} 25. a4 {[%clk 0:00:08]}  a5 {[%clk 0:01:57]} 26. Qb5 {[%clk 0:00:08]}  Qg1+ {[%clk 0:01:42]} 27. Qf1 {[%clk 0:00:08]}  Qd4 {[%clk 0:01:42]} 28. Qd3 {[%clk 0:00:07]}  Rhe8 {[%clk 0:01:36]} 29. Ke2 {[%clk 0:00:05]}  f5 {[%clk 0:01:31]} 30. Rc4 {[%clk 0:00:03]}  Qb6 {[%clk 0:01:27]} 31. Rf1 {[%clk 0:00:02]}  f4 {[%clk 0:01:17]} 32. g4 {[%clk 0:00:02]}  g5 {[%clk 0:01:14]} 33. h5 {[%clk 0:00:02]}  Bf8 {[%clk 0:01:14]} 34. Qf3 {[%clk 0:00:02]}  Bc5 {[%clk 0:01:13]} 35. c3 {[%clk 0:00:03]}  Be3 {[%clk 0:01:13]} 36. Bc2 {[%clk 0:00:03]}  Rd6 {[%clk 0:01:12]} 37. Kd3 {[%clk 0:00:03]}  Rc8 {[%clk 0:01:12]} 38. b4 {[%clk 0:00:00]}  c6 {[%clk 0:01:10]} 0-1


[Site "https://www.chess.com"]

[Event "Titled Tuesday Blitz August 15 Late 2023"]
[White "Golubev, Mikhail"]
[Black "KrokerGuy"]
[WhiteFideId "14100983"]
[WhiteElo "2564"]
[BlackElo "2437"]
[Result "0-1"]
[Round "5"]
[TimeControl "180+1"]
[Date "2023.08.15"]
[WhiteClock "0:00:03"]
[BlackClock "0:00:08"]
[Board "79"]

1. e4 {[%clk 0:03:00]}  e5 {[%clk 0:02:59]} 2. Nf3 {[%clk 0:03:00]}  Nc6 {[%clk 0:03:00]} 3. Bc4 {[%clk 0:03:01]}  Bc5 {[%clk 0:03:00]} 4. c3 {[%clk 0:03:01]}  Nf6 {[%clk 0:03:00]} 5. d4 {[%clk 0:03:01]}  exd4 {[%clk 0:03:01]} 6. cxd4 {[%clk 0:03:02]}  Bb4+ {[%clk 0:03:01]} 7. Nbd2 {[%clk 0:03:02]}  Nxe4 {[%clk 0:02:52]} 8. d5 {[%clk 0:03:02]}  Ne7 {[%clk 0:02:44]} 9. O-O {[%clk 0:02:59]}  Nxd2 {[%clk 0:02:45]} 10. Nxd2 {[%clk 0:02:59]}  O-O {[%clk 0:02:42]} 11. a3 {[%clk 0:02:49]}  Ba5 {[%clk 0:02:31]} 12. b4 {[%clk 0:02:22]}  Bb6 {[%clk 0:02:31]} 13. Bb2 {[%clk 0:02:20]}  d6 {[%clk 0:02:25]} 14. Bd3 {[%clk 0:02:08]}  Bf5 {[%clk 0:02:06]} 15. Bxf5 {[%clk 0:02:08]}  Nxf5 {[%clk 0:02:07]} 16. Qg4 {[%clk 0:02:06]}  g6 {[%clk 0:02:04]} 17. Ne4 {[%clk 0:02:04]}  Bd4 {[%clk 0:02:00]} 18. Bxd4 {[%clk 0:01:30]}  Nxd4 {[%clk 0:02:01]} 19. Qd1 {[%clk 0:01:30]}  Nf5 {[%clk 0:01:42]} 20. g4 {[%clk 0:01:30]}  Ng7 {[%clk 0:01:37]} 21. Qd4 {[%clk 0:00:31]}  f5 {[%clk 0:01:31]} 22. gxf5 {[%clk 0:00:28]}  Nxf5 {[%clk 0:01:11]} 23. Qc3 {[%clk 0:00:28]}  Nh4 {[%clk 0:00:49]} 24. f4 {[%clk 0:00:26]}  Qd7 {[%clk 0:00:40]} 25. Kh1 {[%clk 0:00:25]}  Qg4 {[%clk 0:00:30]} 26. Rf2 {[%clk 0:00:26]}  Qf5 {[%clk 0:00:19]} 27. Qd4 {[%clk 0:00:24]}  Rae8 {[%clk 0:00:17]} 28. Ng3 {[%clk 0:00:24]}  Qh3 {[%clk 0:00:13]} 29. Rg1 {[%clk 0:00:23]}  Nf5 {[%clk 0:00:08]} 30. Nxf5 {[%clk 0:00:22]}  Rxf5 {[%clk 0:00:09]} 31. Qc4 {[%clk 0:00:20]}  Re7 {[%clk 0:00:08]} 32. Rgf1 {[%clk 0:00:18]}  Qe3 {[%clk 0:00:07]} 33. Rf3 {[%clk 0:00:18]}  Qe4 {[%clk 0:00:08]} 34. Qb5 {[%clk 0:00:16]}  Rxf4 {[%clk 0:00:07]} 35. Kg2 {[%clk 0:00:10]}  Rxf3 {[%clk 0:00:08]} 36. Rxf3 {[%clk 0:00:10]}  Rf7 {[%clk 0:00:08]} 37. Qf1 {[%clk 0:00:03]}  Qxd5 {[%clk 0:00:08]} 0-1


[Site "https://www.chess.com"]

[Event "Titled Tuesday Blitz August 15 Late 2023"]
[White "Loay, Sameer"]
[Black "Buchenau, Frank"]
[WhiteFideId "8104239"]
[BlackFideId "4604350"]
[WhiteElo "2563"]
[BlackElo "2434"]
[Result "1/2-1/2"]
[Round "5"]
[TimeControl "180+1"]
[Date "2023.08.15"]
[WhiteClock "0:00:23"]
[BlackClock "0:00:09"]
[Board "81"]

1. Nf3 {[%clk 0:03:00]}  Nf6 {[%clk 0:02:58]} 2. g3 {[%clk 0:03:01]}  b6 {[%clk 0:02:58]} 3. Bg2 {[%clk 0:03:01]}  Bb7 {[%clk 0:02:58]} 4. O-O {[%clk 0:03:02]}  e6 {[%clk 0:02:58]} 5. d3 {[%clk 0:03:02]}  d5 {[%clk 0:02:56]} 6. Nbd2 {[%clk 0:03:02]}  Nbd7 {[%clk 0:02:55]} 7. e4 {[%clk 0:02:58]}  dxe4 {[%clk 0:02:54]} 8. Ng5 {[%clk 0:02:57]}  Nc5 {[%clk 0:02:54]} 9. Ngxe4 {[%clk 0:02:57]}  Nfxe4 {[%clk 0:02:51]} 10. Nxe4 {[%clk 0:02:55]}  Nxe4 {[%clk 0:02:50]} 11. dxe4 {[%clk 0:02:56]}  Qxd1 {[%clk 0:02:37]} 12. Rxd1 {[%clk 0:02:57]}  e5 {[%clk 0:02:28]} 13. b3 {[%clk 0:02:53]}  Bc5 {[%clk 0:02:19]} 14. Bb2 {[%clk 0:02:51]}  f6 {[%clk 0:02:18]} 15. a3 {[%clk 0:02:50]}  a5 {[%clk 0:02:17]} 16. c3 {[%clk 0:02:50]}  Ke7 {[%clk 0:02:09]} 17. b4 {[%clk 0:02:50]}  Bd6 {[%clk 0:02:09]} 18. f3 {[%clk 0:02:37]}  Rhd8 {[%clk 0:02:04]} 19. Kf2 {[%clk 0:02:36]}  Ba6 {[%clk 0:01:56]} 20. Bf1 {[%clk 0:02:33]}  Bxf1 {[%clk 0:01:55]} 21. Kxf1 {[%clk 0:02:34]}  c6 {[%clk 0:01:49]} 22. Ke2 {[%clk 0:02:33]}  Ke6 {[%clk 0:01:44]} 23. Ke3 {[%clk 0:02:22]}  b5 {[%clk 0:01:34]} 24. f4 {[%clk 0:02:20]}  g6 {[%clk 0:01:26]} 25. Rf1 {[%clk 0:02:09]}  c5 {[%clk 0:01:26]} 26. f5+ {[%clk 0:02:08]}  Ke7 {[%clk 0:01:26]} 27. bxc5 {[%clk 0:01:54]}  Bxc5+ {[%clk 0:01:25]} 28. Ke2 {[%clk 0:01:55]}  Rd6 {[%clk 0:01:24]} 29. a4 {[%clk 0:01:48]}  Rad8 {[%clk 0:01:20]} 30. Bc1 {[%clk 0:01:48]}  b4 {[%clk 0:01:14]} 31. cxb4 {[%clk 0:01:47]}  Bxb4 {[%clk 0:01:12]} 32. Rb1 {[%clk 0:01:43]}  Rd4 {[%clk 0:01:12]} 33. Kf3 {[%clk 0:01:35]}  Rd3+ {[%clk 0:01:11]} 34. Ke2 {[%clk 0:01:36]}  Rc3 {[%clk 0:01:10]} 35. Be3 {[%clk 0:01:24]}  Rdd3 {[%clk 0:01:06]} 36. Bb6 {[%clk 0:01:19]}  Ra3 {[%clk 0:01:03]} 37. Rb2 {[%clk 0:01:12]}  Rdc3 {[%clk 0:00:52]} 38. Rd1 {[%clk 0:01:07]}  Rxa4 {[%clk 0:00:51]} 39. Bd8+ {[%clk 0:01:03]}  Kf7 {[%clk 0:00:49]} 40. fxg6+ {[%clk 0:01:03]}  hxg6 {[%clk 0:00:48]} 41. Rf1 {[%clk 0:01:04]}  Be7 {[%clk 0:00:36]} 42. Bxe7 {[%clk 0:00:56]}  Kxe7 {[%clk 0:00:34]} 43. Rb7+ {[%clk 0:00:56]}  Ke6 {[%clk 0:00:23]} 44. Rb6+ {[%clk 0:00:56]}  Ke7 {[%clk 0:00:23]} 45. Kd2 {[%clk 0:00:52]}  Rc7 {[%clk 0:00:17]} 46. Rfxf6 {[%clk 0:00:36]}  Rxe4 {[%clk 0:00:15]} 47. Rbe6+ {[%clk 0:00:33]}  Kd7 {[%clk 0:00:15]} 48. Rd6+ {[%clk 0:00:34]}  Kc8 {[%clk 0:00:15]} 49. Rxg6 {[%clk 0:00:34]}  a4 {[%clk 0:00:14]} 50. Ra6 {[%clk 0:00:34]}  Rd7+ {[%clk 0:00:13]} 51. Kc3 {[%clk 0:00:33]}  Red4 {[%clk 0:00:11]} 52. Rg8+ {[%clk 0:00:29]}  Kb7 {[%clk 0:00:11]} 53. Rga8 {[%clk 0:00:28]}  Rc7+ {[%clk 0:00:11]} 54. Kb2 {[%clk 0:00:25]}  e4 {[%clk 0:00:09]} 55. R8a7+ {[%clk 0:00:23]}  Kc8 {[%clk 0:00:09]} 56. Rxc7+ {[%clk 0:00:23]}  Kxc7 {[%clk 0:00:10]} 57. Kc3 {[%clk 0:00:22]}  Rd3+ {[%clk 0:00:09]} 58. Kc4 {[%clk 0:00:23]}  a3 {[%clk 0:00:09]} 59. g4 {[%clk 0:00:21]}  Rh3 {[%clk 0:00:08]} 60. Kd4 {[%clk 0:00:22]}  Rxh2 {[%clk 0:00:08]} 61. Kxe4 {[%clk 0:00:22]}  a2 {[%clk 0:00:07]} 62. Kf5 {[%clk 0:00:23]}  Rf2+ {[%clk 0:00:07]} 63. Kg6 {[%clk 0:00:23]}  Kb7 {[%clk 0:00:07]} 64. Ra3 {[%clk 0:00:23]}  Kb6 {[%clk 0:00:08]} 65. g5 {[%clk 0:00:23]}  Rg2 {[%clk 0:00:08]} 66. Kf6 {[%clk 0:00:22]}  Kb5 {[%clk 0:00:08]} 67. g6 {[%clk 0:00:23]}  Kb4 {[%clk 0:00:08]} 68. Ra8 {[%clk 0:00:23]}  Kb3 {[%clk 0:00:09]} 69. g7 {[%clk 0:00:22]}  Kb2 {[%clk 0:00:09]} 70. Rb8+ {[%clk 0:00:21]}  Kc1 {[%clk 0:00:09]} 71. Ra8 {[%clk 0:00:21]}  Kb2 {[%clk 0:00:09]} 72. Kf7 {[%clk 0:00:20]}  a1=Q {[%clk 0:00:09]} 73. Rxa1 {[%clk 0:00:21]}  Kxa1 {[%clk 0:00:09]} 74. g8=Q {[%clk 0:00:22]}  Rxg8 {[%clk 0:00:09]} 75. Kxg8 {[%clk 0:00:23]} 1/2-1/2


[Site "https://www.chess.com"]

[Event "Titled Tuesday Blitz August 15 Late 2023"]
[White "Harriott, Tyrell"]
[Black "Francisco Guecamburu, Candela Be"]
[WhiteFideId "2086484"]
[BlackFideId "160911"]
[WhiteElo "2430"]
[BlackElo "2557"]
[Result "1-0"]
[Round "5"]
[TimeControl "180+1"]
[Date "2023.08.15"]
[WhiteClock "0:00:14"]
[BlackClock "0:00:09"]
[Board "82"]

1. d4 {[%clk 0:02:58]}  Nf6 {[%clk 0:03:00]} 2. e3 {[%clk 0:02:52]}  c5 {[%clk 0:02:59]} 3. f4 {[%clk 0:02:51]}  cxd4 {[%clk 0:02:57]} 4. exd4 {[%clk 0:02:51]}  g6 {[%clk 0:02:57]} 5. Nf3 {[%clk 0:02:51]}  Bg7 {[%clk 0:02:57]} 6. Bd3 {[%clk 0:02:50]}  O-O {[%clk 0:02:58]} 7. O-O {[%clk 0:02:50]}  b6 {[%clk 0:02:57]} 8. f5 {[%clk 0:02:47]}  Bb7 {[%clk 0:02:56]} 9. Qe1 {[%clk 0:02:45]}  e6 {[%clk 0:02:51]} 10. fxg6 {[%clk 0:02:44]}  fxg6 {[%clk 0:02:51]} 11. Qh4 {[%clk 0:02:42]}  Ne4 {[%clk 0:02:38]} 12. Qh3 {[%clk 0:02:35]}  Qe7 {[%clk 0:02:19]} 13. c3 {[%clk 0:02:16]}  Na6 {[%clk 0:02:06]} 14. Nbd2 {[%clk 0:02:13]}  Nd6 {[%clk 0:01:42]} 15. Nb3 {[%clk 0:02:03]}  Nc7 {[%clk 0:01:34]} 16. Bh6 {[%clk 0:01:56]}  Bxh6 {[%clk 0:01:28]} 17. Qxh6 {[%clk 0:01:55]}  Qg7 {[%clk 0:01:29]} 18. Qh3 {[%clk 0:01:52]}  Nd5 {[%clk 0:01:22]} 19. Qg3 {[%clk 0:01:43]}  Nf4 {[%clk 0:01:20]} 20. Rad1 {[%clk 0:01:37]}  Ne4 {[%clk 0:01:16]} 21. Qe1 {[%clk 0:01:28]}  Nf6 {[%clk 0:01:04]} 22. Ne5 {[%clk 0:01:23]}  N6h5 {[%clk 0:00:51]} 23. Be4 {[%clk 0:01:18]}  Bxe4 {[%clk 0:00:44]} 24. Qxe4 {[%clk 0:01:17]}  Rae8 {[%clk 0:00:40]} 25. Rf3 {[%clk 0:01:11]}  Qh6 {[%clk 0:00:36]} 26. Rdf1 {[%clk 0:01:09]}  Qg5 {[%clk 0:00:32]} 27. Qc2 {[%clk 0:01:00]}  d6 {[%clk 0:00:31]} 28. Nc4 {[%clk 0:00:49]}  Rd8 {[%clk 0:00:11]} 29. Kh1 {[%clk 0:00:48]}  b5 {[%clk 0:00:11]} 30. Ne3 {[%clk 0:00:47]}  e5 {[%clk 0:00:10]} 31. Qd2 {[%clk 0:00:42]}  a6 {[%clk 0:00:09]} 32. Nc1 {[%clk 0:00:38]}  Qh4 {[%clk 0:00:07]} 33. Ne2 {[%clk 0:00:31]}  Nxe2 {[%clk 0:00:07]} 34. Qxe2 {[%clk 0:00:29]}  Rxf3 {[%clk 0:00:05]} 35. Qxf3 {[%clk 0:00:27]}  Qe7 {[%clk 0:00:04]} 36. Nd5 {[%clk 0:00:25]}  Qe6 {[%clk 0:00:05]} 37. g4 {[%clk 0:00:23]}  Nf4 {[%clk 0:00:04]} 38. Nxf4 {[%clk 0:00:22]}  exf4 {[%clk 0:00:05]} 39. Qxf4 {[%clk 0:00:23]}  d5 {[%clk 0:00:05]} 40. Rf2 {[%clk 0:00:21]}  Qe1+ {[%clk 0:00:05]} 41. Kg2 {[%clk 0:00:21]}  Qe7 {[%clk 0:00:06]} 42. Qf3 {[%clk 0:00:20]}  Qe6 {[%clk 0:00:06]} 43. Re2 {[%clk 0:00:20]}  Qd6 {[%clk 0:00:05]} 44. Rf2 {[%clk 0:00:19]}  Qe7 {[%clk 0:00:05]} 45. Re2 {[%clk 0:00:19]}  Qd6 {[%clk 0:00:06]} 46. Re5 {[%clk 0:00:19]}  Qd7 {[%clk 0:00:04]} 47. h3 {[%clk 0:00:18]}  a5 {[%clk 0:00:04]} 48. Qf6 {[%clk 0:00:18]}  Rf8 {[%clk 0:00:04]} 49. Qe6+ {[%clk 0:00:17]}  Qxe6 {[%clk 0:00:04]} 50. Rxe6 {[%clk 0:00:18]}  Rd8 {[%clk 0:00:03]} 51. Rb6 {[%clk 0:00:18]}  b4 {[%clk 0:00:04]} 52. cxb4 {[%clk 0:00:18]}  axb4 {[%clk 0:00:05]} 53. Rxb4 {[%clk 0:00:18]}  Re8 {[%clk 0:00:05]} 54. Kf2 {[%clk 0:00:18]}  Rf8+ {[%clk 0:00:06]} 55. Ke3 {[%clk 0:00:18]}  Re8+ {[%clk 0:00:07]} 56. Kd3 {[%clk 0:00:18]}  Rf8 {[%clk 0:00:07]} 57. Ke2 {[%clk 0:00:17]}  Re8+ {[%clk 0:00:08]} 58. Kf3 {[%clk 0:00:16]}  Rf8+ {[%clk 0:00:08]} 59. Kg3 {[%clk 0:00:16]}  Re8 {[%clk 0:00:09]} 60. a4 {[%clk 0:00:15]}  Re3+ {[%clk 0:00:09]} 61. Kg2 {[%clk 0:00:14]}  Re2+ {[%clk 0:00:10]} 62. Kg3 {[%clk 0:00:15]}  Rh2 {[%clk 0:00:09]} 63. Kxh2 {[%clk 0:00:14]} 1-0


[Site "https://www.chess.com"]

[Event "Titled Tuesday Blitz August 15 Late 2023"]
[White "Grossboss19"]
[Black "Rego, Pedro Filipe"]
[BlackFideId "1904310"]
[WhiteElo "2551"]
[BlackElo "2429"]
[Result "1-0"]
[Round "5"]
[TimeControl "180+1"]
[Date "2023.08.15"]
[WhiteClock "0:00:52"]
[BlackClock "0:00:27"]
[Board "83"]

1. c4 {[%clk 0:03:00]}  Nf6 {[%clk 0:02:55]} 2. Nf3 {[%clk 0:02:57]}  e6 {[%clk 0:02:53]} 3. Nc3 {[%clk 0:02:57]}  d5 {[%clk 0:02:53]} 4. e3 {[%clk 0:02:56]}  c5 {[%clk 0:02:52]} 5. cxd5 {[%clk 0:02:54]}  Nxd5 {[%clk 0:02:50]} 6. Bc4 {[%clk 0:02:52]}  Nc6 {[%clk 0:02:49]} 7. O-O {[%clk 0:02:51]}  Be7 {[%clk 0:02:48]} 8. a3 {[%clk 0:02:44]}  O-O {[%clk 0:02:42]} 9. Qc2 {[%clk 0:02:44]}  h6 {[%clk 0:02:36]} 10. Rd1 {[%clk 0:02:41]}  a6 {[%clk 0:02:34]} 11. Ba2 {[%clk 0:02:36]}  b5 {[%clk 0:02:25]} 12. Bb1 {[%clk 0:02:28]}  Nf6 {[%clk 0:02:21]} 13. Ne4 {[%clk 0:02:23]}  g6 {[%clk 0:02:16]} 14. Nxc5 {[%clk 0:02:12]}  Qd5 {[%clk 0:02:09]} 15. d4 {[%clk 0:02:09]}  Rd8 {[%clk 0:02:00]} 16. Bd2 {[%clk 0:01:57]}  Bd7 {[%clk 0:01:48]} 17. Ba2 {[%clk 0:01:55]}  Qd6 {[%clk 0:01:45]} 18. Nb7 {[%clk 0:01:54]}  Qc7 {[%clk 0:01:43]} 19. Nxd8 {[%clk 0:01:55]}  Rxd8 {[%clk 0:01:43]} 20. Rac1 {[%clk 0:01:54]}  Qb7 {[%clk 0:01:40]} 21. Ne5 {[%clk 0:01:47]}  Nxe5 {[%clk 0:01:35]} 22. dxe5 {[%clk 0:01:48]}  Ne4 {[%clk 0:01:34]} 23. Bb4 {[%clk 0:01:40]}  Bh4 {[%clk 0:01:31]} 24. f3 {[%clk 0:01:03]}  Bf2+ {[%clk 0:01:01]} 25. Kh1 {[%clk 0:01:03]}  Bxe3 {[%clk 0:01:01]} 26. Qxe4 {[%clk 0:01:01]}  Qxe4 {[%clk 0:00:59]} 27. fxe4 {[%clk 0:01:02]}  Bxc1 {[%clk 0:01:00]} 28. Rxc1 {[%clk 0:01:02]}  Be8 {[%clk 0:00:56]} 29. h3 {[%clk 0:00:59]}  Kg7 {[%clk 0:00:40]} 30. Be7 {[%clk 0:00:59]}  Rb8 {[%clk 0:00:34]} 31. Bf6+ {[%clk 0:00:58]}  Kf8 {[%clk 0:00:35]} 32. b4 {[%clk 0:00:55]}  Rb6 {[%clk 0:00:32]} 33. Bd8 {[%clk 0:00:51]}  Rb8 {[%clk 0:00:31]} 34. Bc7 {[%clk 0:00:51]}  Rc8 {[%clk 0:00:27]} 35. Bd6+ {[%clk 0:00:52]} 1-0


[Site "https://www.chess.com"]